[Event "NED-ch U14 Girls 2019"]
[Site "Assen"]
[Date "2019.04.30"]
[Round "3.8"]
[White "Verheij, Dana"]
[Black "Jonkman Inza, Amelia Marry"]
[Result "0-1"]
[ECO "C10"]
[WhiteElo "1377"]
[BlackElo "1132"]
[Annotator "NA"]
[PlyCount "120"]
[EventDate "2019.04.28"]
[EventType "swiss"]
[EventCountry "NED"]
[SourceTitle "playchess.com"]
[Source "ChessBase"]
[SourceQuality "1"]
[TimeControl "40/5400+30:1800+30"]

1. e4 {[%emt 0:00:00]} e6 {[%emt 0:00:00]} 2. d4 {[%emt 0:00:00]} d5 {[%emt 0:00:00]} 3. Nd2 {[%emt 0:00:00]} Nf6 {[%emt 0:00:28]} 4. Bd3 {[%emt 0:00:10]} Be7 {[%emt 0:01:34]} 5. Ngf3 {[%emt 0:00:26]} dxe4 {[%emt 0:03:04]} 6. Nxe4 {[%emt 0:00:42]} c6 {[%emt 0:00:55]} 7. O-O {[%emt 0:02:42]} Nbd7 {[%emt 0:01:02]} 8. c4 {[%emt 0:01:49]} b6 {[%emt 0:05:10]} 9. Bf4 {[%emt 0:01:37]} Nxe4 {[%emt 0:02:41]} 10. Bxe4 {[%emt 0:00:07]} Bb7 {[%emt 0:01:06]} 11. Rc1 {[%emt 0:05:01]} Nf6 {[%emt 0:06:57]} 12. Bb1 {[%emt 0:02:28]} c5 {[%emt 0:02:53]} 13. Be5 {[%emt 0:08:13]} Rc8 {[%emt 0:06:15]} 14. Bc2 {[%emt 0:11:28]} O-O {[%emt 0:22:25]} 15. Ng5 {[%emt 0:06:40]} g6 {[%emt 0:06:26]} 16. h4 {[%emt 0:04:33]} cxd4 {[%emt 0:02:35]} 17. h5 {[%emt 0:09:58]} Rxc4 {[%emt 0:07:21]} 18. hxg6 {[%emt 0:03:19]} hxg6 {[%emt 0:02:57]} 19. Qd3 {[%emt 0:02:18]} Qd5 {[%emt 0:02:14]} 20. Qg3 {[%emt 0:03:35]} Nh5 {[%emt 0:01:20]} 21. Qg4 {[%emt 0:07:29]} Qxe5 {[%emt 0:23:07]} 22. Nf3 {[%emt 0:00:51]} Bxf3 {[%emt 0:00:00]} 23. Qxf3 {[%emt 0:02:44]} Rfc8 {[%emt 0:00:00]} 24. Rce1 {[%emt 0:01:00]} Qf6 {[%emt 0:00:00]} 25. Qxf6 {[%emt 0:03:06]} Bxf6 {[%emt 0:00:00]} 26. Bb3 {[%emt 0:01:02]} R4c5 {[%emt 0:00:00]} 27. f4 {[%emt 0:01:20]} d3 {[%emt 0:00:00]} 28. Rd1 {[%emt 0:02:01]} Rd8 {[%emt 0:00:00]} 29. g4 {[%emt 0:00:42]} Ng7 {[%emt 0:00:00]} 30. Kg2 {[%emt 0:00:56]} Bxb2 {[%emt 0:00:00]} 31. Rf2 {[%emt 0:02:28]} Bf6 {[%emt 0:00:00]} 32. Rfd2 {[%emt 0:00:52]} Rc3 {[%emt 0:00:00]} 33. Kf3 {[%emt 0:00:35]} e5 {[%emt 0:00:00]} 34. g5 {[%emt 0:00:18]} Be7 {[%emt 0:00:00]} 35. fxe5 {[%emt 0:00:37]} Bxg5 {[%emt 0:00:00]} 36. Rg2 {[%emt 0:00:30]} d2+ {[%emt 0:00:00]} 37. Ke2 {[%emt 0:00:49]} Re3+ {[%emt 0:00:00]} 38. Kf2 {[%emt 0:00:17]} Rxe5 {[%emt 0:00:11]} 39. Rh2 {[%emt 0:00:54]} Nh5 {[%emt 0:01:30]} 40. Kf1 {[%emt 0:02:12]} Kg7 {[%emt 0:02:41]} 41. Rf2 {[%emt 0:30:54]} f6 {[%emt 0:31:36]} 42. Rf3 {[%emt 0:00:26]} Rde8 {[%emt 0:02:07]} 43. Kg2 {[%emt 0:01:07]} Re2+ {[%emt 0:01:12]} 44. Kh3 {[%emt 0:02:04]} Nf4+ {[%emt 0:00:45]} 45. Kg4 {[%emt 0:01:12]} Rg2+ {[%emt 0:00:00]} 46. Rg3 {[%emt 0:00:00]} Rxg3+ {[%emt 0:00:00]} 47. Kxg3 {[%emt 0:00:00]} Nh5+ {[%emt 0:00:00]} 48. Kf3 {[%emt 0:00:00]} f5 {[%emt 0:00:00]} 49. Bc4 {[%emt 0:00:00]} Kf6 {[%emt 0:00:00]} 50. Bb5 {[%emt 0:00:00]} Re5 {[%emt 0:00:00]} 51. Bc4 {[%emt 0:00:00]} b5 {[%emt 0:00:00]} 52. Bb3 {[%emt 0:00:00]} a5 {[%emt 0:00:00]} 53. Rb1 {[%emt 0:00:00]} Bf4 {[%emt 0:00:00]} 54. Rh1 {[%emt 0:00:00]} Re3+ {[%emt 0:00:00]} 55. Kf2 {[%emt 0:00:00]} Ng3 {[%emt 0:00:00]} 56. Rh4 {[%emt 0:00:00]} Kg5 {[%emt 0:00:00]} 57. Rh8 {[%emt 0:00:00]} Re1 {[%emt 0:00:00]} 58. Rd8 {[%emt 0:00:00]} Rf1+ {[%emt 0:00:00]} 59. Kg2 {[%emt 0:00:00]} a4 {[%emt 0:00:00]} 60. Bc2 {[%emt 0:00:00]} Rc1 {[%emt 0:00:00]} 0-1

[Event "NED-ch U14 Girls 2019"]
[Site "Assen"]
[Date "2019.05.01"]
[Round "4.1"]
[White "Den Heijer, Rolinde"]
[Black "Huang, Wendy"]
[Result "1/2-1/2"]
[ECO "B90"]
[WhiteElo "1423"]
[BlackElo "1586"]
[Annotator "NA"]
[PlyCount "124"]
[EventDate "2019.04.28"]
[EventType "swiss"]
[EventCountry "NED"]
[SourceTitle "playchess.com"]
[Source "ChessBase"]
[SourceQuality "1"]
[TimeControl "40/5400+30:1800+30"]

1. e4 {[%emt 0:00:00]} c5 {[%emt 0:00:00]} 2. Nf3 {[%emt 0:00:00]} d6 {[%emt 0:00:00]} 3. d4 {[%emt 0:00:00]} cxd4 {[%emt 0:00:00]} 4. Nxd4 {[%emt 0:00:00]} Nf6 {[%emt 0:00:00]} 5. Nc3 {[%emt 0:00:04]} a6 {[%emt 0:00:00]} 6. Be3 {[%emt 0:00:29]} e5 {[%emt 0:00:07]} 7. Nb3 {[%emt 0:00:07]} Be6 {[%emt 0:00:40]} 8. Qd2 {[%emt 0:01:14]} Be7 {[%emt 0:03:38]} 9. f3 {[%emt 0:01:17]} O-O {[%emt 0:01:01]} 10. Be2 {[%emt 0:01:21]} Qc7 {[%emt 0:03:26]} 11. g4 {[%emt 0:04:40]} Nbd7 {[%emt 0:06:57]} 12. g5 {[%emt 0:03:46]} Nh5 {[%emt 0:01:13]} 13. Nd5 {[%emt 0:02:08]} Bxd5 {[%emt 0:01:07]} 14. exd5 {[%emt 0:00:22]} Rac8 {[%emt 0:03:24]} 15. O-O-O {[%emt 0:04:26]} b5 {[%emt 0:03:23]} 16. Na5 {[%emt 0:04:21]} Nb6 {[%emt 0:03:56]} 17. Kb1 {[%emt 0:06:41]} Nxd5 {[%emt 0:05:10]} 18. Nc4 {[%emt 0:13:56]} Nhf4 {[%emt 0:12:59]} 19. Bxf4 {[%emt 0:05:17]} Nxf4 {[%emt 0:01:36]} 20. Ne3 {[%emt 0:01:46]} g6 {[%emt 0:08:55]} 21. h4 {[%emt 0:02:49]} Kg7 {[%emt 0:03:12]} 22. Bf1 {[%emt 0:03:08]} Qc5 {[%emt 0:05:39]} 23. Bh3 {[%emt 0:03:51]} Rc7 {[%emt 0:02:09]} 24. Bg4 {[%emt 0:02:27]} b4 {[%emt 0:02:56]} 25. Rh2 {[%emt 0:03:19]} a5 {[%emt 0:01:41]} 26. Nd5 {[%emt 0:02:39]} Nxd5 {[%emt 0:02:01]} 27. Qxd5 {[%emt 0:03:41]} a4 {[%emt 0:02:43]} 28. Qxc5 {[%emt 0:05:09]} Rxc5 {[%emt 0:00:32]} 29. Rhd2 {[%emt 0:00:47]} Rd8 {[%emt 0:26:05]} 30. Rd5 {[%emt 0:02:21]} h6 {[%emt 0:00:00]} 31. R5d2 {[%emt 0:07:06]} hxg5 {[%emt 0:00:00]} 32. hxg5 {[%emt 0:00:25]} d5 {[%emt 0:00:00]} 33. Re2 {[%emt 0:00:42]} d4 {[%emt 0:00:00]} 34. f4 {[%emt 0:03:16]} Bd6 {[%emt 0:00:00]} 35. f5 {[%emt 0:01:48]} gxf5 {[%emt 0:00:00]} 36. Bxf5 {[%emt 0:00:18]} Rh8 {[%emt 0:00:00]} 37. Rg1 {[%emt 0:02:02]} Rh5 {[%emt 0:00:00]} 38. Reg2 {[%emt 0:02:32]} Be7 {[%emt 0:00:00]} 39. Be4 {[%emt 0:00:52]} Rh4 {[%emt 0:00:00]} 40. Re2 {[%emt 0:01:53]} Rf4 {[%emt 0:00:00]} 41. Bd3 {[%emt 0:31:33]} e4 {[%emt 0:31:09]} 42. Rxe4 {[%emt 0:02:17]} Rxe4 {[%emt 0:01:34]} 43. Bxe4 {[%emt 0:00:15]} Bxg5 {[%emt 0:00:33]} 44. Rf1 {[%emt 0:01:24]} a3 {[%emt 0:01:33]} 45. Bd3 {[%emt 0:01:05]} Re5 {[%emt 0:00:50]} 46. Rd1 {[%emt 0:01:17]} f5 {[%emt 0:01:15]} 47. Bf1 {[%emt 0:00:46]} f4 {[%emt 0:00:50]} 48. c3 {[%emt 0:01:26]} dxc3 {[%emt 0:01:04]} 49. bxa3 {[%emt 0:00:41]} bxa3 {[%emt 0:00:36]} 50. Kc2 {[%emt 0:00:27]} Re3 {[%emt 0:00:00]} 51. Rd3 {[%emt 0:00:00]} Rxd3 {[%emt 0:00:00]} 52. Bxd3 {[%emt 0:00:00]} Bf6 {[%emt 0:00:00]} 53. Kb3 {[%emt 0:00:00]} Bd4 {[%emt 0:00:00]} 54. Kc4 {[%emt 0:00:00]} Be5 {[%emt 0:00:00]} 55. Kb3 {[%emt 0:00:00]} Kf6 {[%emt 0:00:00]} 56. Kxa3 {[%emt 0:00:00]} Bd4 {[%emt 0:00:00]} 57. Kb3 {[%emt 0:00:00]} Ke5 {[%emt 0:00:00]} 58. a4 {[%emt 0:00:00]} f3 {[%emt 0:00:00]} 59. a5 {[%emt 0:00:00]} Kd6 {[%emt 0:00:00]} 60. a6 {[%emt 0:00:00]} Kc7 {[%emt 0:00:00]} 61. a7 {[%emt 0:00:00]} Kb7 {[%emt 0:00:00]} 62. Be4+ {[%emt 0:00:00]} Kxa7 {[%emt 0:00:00]} 1/2-1/2

[Event "NED-ch U14 Girls 2019"]
[Site "Assen"]
[Date "2019.05.01"]
[Round "4.2"]
[White "Morote, Luna"]
[Black "Cordes, Jule"]
[Result "1/2-1/2"]
[ECO "C90"]
[WhiteElo "1360"]
[BlackElo "1564"]
[Annotator "NA"]
[PlyCount "61"]
[EventDate "2019.04.28"]
[EventType "swiss"]
[EventCountry "NED"]
[SourceTitle "playchess.com"]
[Source "ChessBase"]
[SourceQuality "1"]
[TimeControl "40/5400+30:1800+30"]

1. e4 {[%emt 0:00:00]} e5 {[%emt 0:00:00]} 2. Nf3 {[%emt 0:00:00]} Nc6 {[%emt 0:00:00]} 3. Bb5 {[%emt 0:00:00]} a6 {[%emt 0:00:00]} 4. Ba4 {[%emt 0:00:00]} Nf6 {[%emt 0:00:02]} 5. d3 {[%emt 0:00:00]} b5 {[%emt 0:00:07]} 6. Bb3 {[%emt 0:00:00]} Be7 {[%emt 0:00:10]} 7. c3 {[%emt 0:00:06]} O-O {[%emt 0:00:27]} 8. O-O {[%emt 0:00:13]} d6 {[%emt 0:00:07]} 9. Nbd2 {[%emt 0:00:22]} Na5 {[%emt 0:00:34]} 10. Bc2 {[%emt 0:00:17]} c5 {[%emt 0:00:30]} 11. Re1 {[%emt 0:01:17]} Nc6 {[%emt 0:00:41]} 12. Nf1 {[%emt 0:00:27]} h6 {[%emt 0:01:53]} 13. Ng3 {[%emt 0:00:57]} Re8 {[%emt 0:00:28]} 14. a4 {[%emt 0:02:58]} Be6 {[%emt 0:02:03]} 15. d4 {[%emt 0:08:01]} cxd4 {[%emt 0:03:49]} 16. cxd4 {[%emt 0:00:14]} exd4 {[%emt 0:00:51]} 17. Nxd4 {[%emt 0:01:14]} Nxd4 {[%emt 0:09:06]} 18. Qxd4 {[%emt 0:00:32]} Rc8 {[%emt 0:02:02]} 19. Bd3 {[%emt 0:06:20]} Bc4 {[%emt 0:03:59]} 20. axb5 {[%emt 0:02:24]} axb5 {[%emt 0:03:58]} 21. Bd2 {[%emt 0:01:44]} d5 {[%emt 0:07:28]} 22. Ba5 {[%emt 0:15:19]} Bc5 {[%emt 0:05:08]} 23. Qc3 {[%emt 0:15:26]} Bb6 {[%emt 0:11:02]} 24. Bxb6 {[%emt 0:02:19]} Qxb6 {[%emt 0:00:24]} 25. Qd2 {[%emt 0:02:25]} Qd4 {[%emt 0:03:58]} 26. Rad1 {[%emt 0:04:48]} Qxd3 {[%emt 0:08:45]} 27. Qxd3 {[%emt 0:01:16]} Bxd3 {[%emt 0:00:16]} 28. Rxd3 {[%emt 0:00:10]} dxe4 {[%emt 0:01:09]} 29. Rde3 {[%emt 0:02:21]} Rc2 {[%emt 0:04:43]} 30. b3 {[%emt 0:01:27]} Rc6 {[%emt 0:20:30]} 31. f3 {[%emt 0:00:59]} 1/2-1/2

[Event "NED-ch U14 Girls 2019"]
[Site "Assen"]
[Date "2019.05.01"]
[Round "4.4"]
[White "Mensing, Luana"]
[Black "Yeh, Nora"]
[Result "1/2-1/2"]
[ECO "C46"]
[WhiteElo "1549"]
[BlackElo "1529"]
[Annotator "NA"]
[PlyCount "54"]
[EventDate "2019.04.28"]
[EventType "swiss"]
[EventCountry "NED"]
[SourceTitle "playchess.com"]
[Source "ChessBase"]
[SourceQuality "1"]
[TimeControl "40/5400+30:1800+30"]

1. e4 {[%emt 0:00:00]} e5 {[%emt 0:00:00]} 2. Nf3 {[%emt 0:00:00]} Nc6 {[%emt 0:00:00]} 3. Nc3 {[%emt 0:00:06]} Bc5 {[%emt 0:00:00]} 4. d3 {[%emt 0:00:27]} d6 {[%emt 0:00:43]} 5. Bg5 {[%emt 0:03:09]} Nge7 {[%emt 0:01:24]} 6. Be2 {[%emt 0:03:05]} Be6 {[%emt 0:02:33]} 7. O-O {[%emt 0:02:36]} Qd7 {[%emt 0:02:44]} 8. Qd2 {[%emt 0:03:45]} h6 {[%emt 0:03:22]} 9. Be3 {[%emt 0:03:00]} Bxe3 {[%emt 0:00:20]} 10. Qxe3 {[%emt 0:00:39]} Ng6 {[%emt 0:01:06]} 11. d4 {[%emt 0:09:11]} exd4 {[%emt 0:00:50]} 12. Nxd4 {[%emt 0:00:35]} Nxd4 {[%emt 0:01:03]} 13. Qxd4 {[%emt 0:00:08]} O-O {[%emt 0:00:44]} 14. Rad1 {[%emt 0:11:29]} Nf4 {[%emt 0:05:01]} 15. Bf3 {[%emt 0:01:15]} Bg4 {[%emt 0:05:08]} 16. Qe3 {[%emt 0:02:27]} Bxf3 {[%emt 0:03:54]} 17. Qxf3 {[%emt 0:00:12]} Ng6 {[%emt 0:01:10]} 18. Rfe1 {[%emt 0:04:10]} Ne5 {[%emt 0:01:00]} 19. Qg3 {[%emt 0:00:36]} Qg4 {[%emt 0:11:19]} 20. Qxg4 {[%emt 0:00:16]} Nxg4 {[%emt 0:00:06]} 21. Nd5 {[%emt 0:00:21]} Ne5 {[%emt 0:01:44]} 22. c3 {[%emt 0:01:57]} Nc4 {[%emt 0:04:09]} 23. Nxc7 {[%emt 0:01:33]} Rac8 {[%emt 0:02:10]} 24. Nd5 {[%emt 0:00:07]} Rfe8 {[%emt 0:02:01]} 25. b3 {[%emt 0:02:08]} Ne5 {[%emt 0:01:56]} 26. Re3 {[%emt 0:03:19]} b5 {[%emt 0:08:08]} 27. h3 {[%emt 0:06:24]} a5 {[%emt 0:07:05]} 1/2-1/2

[Event "NED-ch U14 Girls 2019"]
[Site "Assen"]
[Date "2019.05.01"]
[Round "4.5"]
[White "Velasco, Kathleen"]
[Black "Bruggink, Lyne"]
[Result "1-0"]
[ECO "C53"]
[WhiteElo "1306"]
[BlackElo "1425"]
[Annotator "NA"]
[PlyCount "93"]
[EventDate "2019.04.28"]
[EventType "swiss"]
[EventCountry "NED"]
[SourceTitle "playchess.com"]
[Source "ChessBase"]
[SourceQuality "1"]
[TimeControl "40/5400+30:1800+30"]

1. e4 {[%emt 0:00:00]} e5 {[%emt 0:00:00]} 2. Nf3 {[%emt 0:00:00]} Nc6 {[%emt 0:00:00]} 3. Bc4 {[%emt 0:00:00]} Bc5 {[%emt 0:01:45]} 4. c3 {[%emt 0:00:25]} f5 {[%emt 0:10:00]} 5. d4 {[%emt 0:08:23]} exd4 {[%emt 0:01:03]} 6. cxd4 {[%emt 0:01:23]} Bb4+ {[%emt 0:00:09]} 7. Bd2 {[%emt 0:04:07]} Bxd2+ {[%emt 0:00:50]} 8. Nbxd2 {[%emt 0:00:15]} fxe4 {[%emt 0:00:39]} 9. Qe2 {[%emt 0:01:04]} d5 {[%emt 0:01:05]} 10. Bb5 {[%emt 0:00:35]} Bg4 {[%emt 0:00:56]} 11. Bxc6+ {[%emt 0:00:43]} bxc6 {[%emt 0:00:15]} 12. h3 {[%emt 0:00:16]} Bh5 {[%emt 0:01:03]} 13. g4 {[%emt 0:05:51]} Bg6 {[%emt 0:00:45]} 14. O-O {[%emt 0:07:42]} Ne7 {[%emt 0:01:04]} 15. Ne5 {[%emt 0:00:51]} O-O {[%emt 0:00:53]} 16. f3 {[%emt 0:00:46]} Qd6 {[%emt 0:01:26]} 17. fxe4 {[%emt 0:00:52]} dxe4 {[%emt 0:00:41]} 18. Nb3 {[%emt 0:15:58]} Rab8 {[%emt 0:03:26]} 19. Rad1 {[%emt 0:06:51]} Nd5 {[%emt 0:03:25]} 20. Qc4 {[%emt 0:12:27]} e3 {[%emt 0:22:31]} 21. Rde1 {[%emt 0:07:15]} Rfd8 {[%emt 0:14:23]} 22. Qxc6 {[%emt 0:09:24]} Bc2 {[%emt 0:03:40]} 23. Qxc2 {[%emt 0:01:37]} Rf8 {[%emt 0:04:29]} 24. Qc5 {[%emt 0:04:43]} Qe6 {[%emt 0:03:02]} 25. Qc6 {[%emt 0:02:46]} Qxc6 {[%emt 0:02:00]} 26. Nxc6 {[%emt 0:00:14]} Rxf1+ {[%emt 0:01:02]} 27. Rxf1 {[%emt 0:00:49]} Rb6 {[%emt 0:00:43]} 28. Ne5 {[%emt 0:01:00]} e2 {[%emt 0:00:43]} 29. Re1 {[%emt 0:00:48]} Nf4 {[%emt 0:00:37]} 30. Kf2 {[%emt 0:01:02]} Rf6 {[%emt 0:01:26]} 31. Kg3 {[%emt 0:01:10]} g5 {[%emt 0:02:41]} 32. Nc1 {[%emt 0:00:53]} Rh6 {[%emt 0:01:37]} 33. Nxe2 {[%emt 0:01:48]} Rxh3+ {[%emt 0:00:15]} 34. Kf2 {[%emt 0:00:11]} Rh2+ {[%emt 0:01:05]} 35. Kf3 {[%emt 0:01:16]} Rh3+ {[%emt 0:04:50]} 36. Ng3 {[%emt 0:00:21]} Rh2 {[%emt 0:00:34]} 37. Ne2 {[%emt 0:00:45]} Rh3+ {[%emt 0:00:15]} 38. Ke4 {[%emt 0:00:19]} Ng2 {[%emt 0:00:30]} 39. Ng1 {[%emt 0:02:17]} Rg3 {[%emt 0:02:00]} 40. Rc1 {[%emt 0:01:07]} Re3+ {[%emt 0:00:44]} 41. Kf5 {[%emt 0:30:13]} Nf4 {[%emt 0:36:29]} 42. Ngf3 {[%emt 0:01:19]} Re2 {[%emt 0:05:27]} 43. Rxc7 {[%emt 0:00:41]} Rxb2 {[%emt 0:00:00]} 44. Nxg5 {[%emt 0:00:00]} Ne2 {[%emt 0:00:00]} 45. Rc8+ {[%emt 0:00:00]} Kg7 {[%emt 0:00:00]} 46. Ne6+ {[%emt 0:00:00]} Kh6 {[%emt 0:00:00]} 47. Nf7# {[%emt 0:00:00]} 1-0

[Event "NED-ch U14 Girls 2019"]
[Site "Assen"]
[Date "2019.05.01"]
[Round "4.6"]
[White "Jonkman Inza, Amelia Marry"]
[Black "Maris, Lauri"]
[Result "1-0"]
[ECO "D50"]
[WhiteElo "1132"]
[BlackElo "1265"]
[Annotator "NA"]
[PlyCount "123"]
[EventDate "2019.04.28"]
[EventType "swiss"]
[EventCountry "NED"]
[SourceTitle "playchess.com"]
[Source "ChessBase"]
[SourceQuality "1"]
[TimeControl "40/5400+30:1800+30"]

1. d4 {[%emt 0:00:00]} d5 {[%emt 0:00:00]} 2. c4 {[%emt 0:00:00]} e6 {[%emt 0:00:00]} 3. Nc3 {[%emt 0:00:00]} Nf6 {[%emt 0:00:00]} 4. Nf3 {[%emt 0:00:16]} c5 {[%emt 0:00:48]} 5. Bg5 {[%emt 0:03:00]} cxd4 {[%emt 0:06:02]} 6. Nxd4 {[%emt 0:04:17]} h6 {[%emt 0:04:01]} 7. Bxf6 {[%emt 0:07:17]} gxf6 {[%emt 0:04:35]} 8. cxd5 {[%emt 0:02:44]} exd5 {[%emt 0:02:27]} 9. g3 {[%emt 0:07:26]} Nc6 {[%emt 0:01:46]} 10. Bg2 {[%emt 0:04:41]} Be6 {[%emt 0:02:09]} 11. O-O {[%emt 0:04:13]} h5 {[%emt 0:01:29]} 12. h4 {[%emt 0:04:56]} f5 {[%emt 0:01:43]} 13. e3 {[%emt 0:03:47]} Bg7 {[%emt 0:03:04]} 14. Nde2 {[%emt 0:02:23]} Ne7 {[%emt 0:01:14]} 15. Rb1 {[%emt 0:01:26]} Rc8 {[%emt 0:01:33]} 16. Qd2 {[%emt 0:03:51]} b6 {[%emt 0:01:36]} 17. Rfd1 {[%emt 0:01:23]} Bf6 {[%emt 0:04:00]} 18. Nxd5 {[%emt 0:03:38]} Nxd5 {[%emt 0:01:28]} 19. Bxd5 {[%emt 0:00:23]} Rg8 {[%emt 0:01:39]} 20. Kf1 {[%emt 0:06:06]} Qe7 {[%emt 0:06:34]} 21. Nf4 {[%emt 0:05:12]} Rd8 {[%emt 0:04:53]} 22. Bc6+ {[%emt 0:01:45]} Kf8 {[%emt 0:00:45]} 23. Qc2 {[%emt 0:02:57]} Bxa2 {[%emt 0:01:45]} 24. Rbc1 {[%emt 0:01:10]} Be6 {[%emt 0:01:11]} 25. Nxh5 {[%emt 0:01:38]} Rxd1+ {[%emt 0:01:47]} 26. Rxd1 {[%emt 0:01:18]} Rh8 {[%emt 0:03:52]} 27. Nxf6 {[%emt 0:00:49]} Qxf6 {[%emt 0:00:22]} 28. Qc3 {[%emt 0:02:34]} Qxc3 {[%emt 0:00:17]} 29. bxc3 {[%emt 0:00:07]} Bc4+ {[%emt 0:00:16]} 30. Ke1 {[%emt 0:00:25]} Kg7 {[%emt 0:00:18]} 31. Rb1 {[%emt 0:03:14]} Bd3 {[%emt 0:00:44]} 32. Rc1 {[%emt 0:02:20]} Rd8 {[%emt 0:02:17]} 33. Rd1 {[%emt 0:04:05]} Rc8 {[%emt 0:01:33]} 34. Rxd3 {[%emt 0:01:04]} Rxc6 {[%emt 0:00:18]} 35. Kd2 {[%emt 0:01:29]} a5 {[%emt 0:00:41]} 36. Rd4 {[%emt 0:05:29]} Rc7 {[%emt 0:02:09]} 37. Rd5 {[%emt 0:02:05]} a4 {[%emt 0:00:57]} 38. Rxf5 {[%emt 0:05:57]} a3 {[%emt 0:00:43]} 39. Kc2 {[%emt 0:00:31]} Ra7 {[%emt 0:00:10]} 40. Kb1 {[%emt 0:01:32]} a2+ {[%emt 0:00:57]} 41. Ka1 {[%emt 0:30:18]} Ra3 {[%emt 0:30:24]} 42. Rb5 {[%emt 0:02:03]} Rxc3 {[%emt 0:00:17]} 43. Rxb6 {[%emt 0:00:00]} Rc2 {[%emt 0:00:00]} 44. Rb2 {[%emt 0:00:00]} Rc6 {[%emt 0:00:00]} 45. Kxa2 {[%emt 0:00:00]} Ra6+ {[%emt 0:00:00]} 46. Kb3 {[%emt 0:00:00]} Rb6+ {[%emt 0:00:00]} 47. Kc3 {[%emt 0:00:00]} Rc6+ {[%emt 0:00:00]} 48. Kd2 {[%emt 0:00:00]} Rd6+ {[%emt 0:00:00]} 49. Ke2 {[%emt 0:00:00]} Re6 {[%emt 0:00:00]} 50. f4 {[%emt 0:00:00]} Re7 {[%emt 0:00:00]} 51. g4 {[%emt 0:00:00]} Kh7 {[%emt 0:00:00]} 52. Kf3 {[%emt 0:00:00]} Kg8 {[%emt 0:00:00]} 53. f5 {[%emt 0:00:00]} Rc7 {[%emt 0:00:00]} 54. Kf4 {[%emt 0:00:00]} Kg7 {[%emt 0:00:00]} 55. g5 {[%emt 0:00:00]} Kh7 {[%emt 0:00:00]} 56. h5 {[%emt 0:00:00]} Kg7 {[%emt 0:00:00]} 57. Rg2 {[%emt 0:00:00]} Kh7 {[%emt 0:00:00]} 58. g6+ {[%emt 0:00:00]} fxg6 {[%emt 0:00:00]} 59. hxg6+ {[%emt 0:00:00]} Kg7 {[%emt 0:00:00]} 60. Rh2 {[%emt 0:00:00]} Kg8 {[%emt 0:00:00]} 61. Rh7 {[%emt 0:00:00]} Rc5 {[%emt 0:00:00]} 62. f6 {[%emt 0:01:11]} 1-0

[Event "NED-ch U14 Girls 2019"]
[Site "Assen"]
[Date "2019.05.02"]
[Round "5.1"]
[White "Huang, Wendy"]
[Black "Honkoop, Stella"]
[Result "1-0"]
[ECO "B92"]
[WhiteElo "1586"]
[BlackElo "1629"]
[Annotator "NA"]
[PlyCount "129"]
[EventDate "2019.04.28"]
[EventType "swiss"]
[EventCountry "NED"]
[SourceTitle "playchess.com"]
[Source "ChessBase"]
[SourceQuality "1"]
[TimeControl "40/5400+30:1800+30"]

1. e4 {[%emt 0:00:00]} c5 {[%emt 0:00:00]} 2. Nf3 {[%emt 0:00:00]} Nc6 {[%emt 0:00:00]} 3. d4 {[%emt 0:00:00]} cxd4 {[%emt 0:00:00]} 4. Nxd4 {[%emt 0:00:00]} Nf6 {[%emt 0:00:00]} 5. Nc3 {[%emt 0:01:52]} d6 {[%emt 0:00:06]} 6. Be2 {[%emt 0:06:47]} e5 {[%emt 0:02:58]} 7. Nb3 {[%emt 0:21:58]} Be7 {[%emt 0:00:56]} 8. O-O {[%emt 0:01:15]} O-O {[%emt 0:00:31]} 9. Bg5 {[%emt 0:02:44]} a6 {[%emt 0:00:49]} 10. a4 {[%emt 0:04:10]} Be6 {[%emt 0:05:43]} 11. Bxf6 {[%emt 0:01:50]} Bxf6 {[%emt 0:00:16]} 12. Nd5 {[%emt 0:00:39]} Be7 {[%emt 0:12:10]} 13. c3 {[%emt 0:03:14]} Bg5 {[%emt 0:07:21]} 14. Bc4 {[%emt 0:07:59]} Ne7 {[%emt 0:04:34]} 15. Nc1 {[%emt 0:08:18]} Rc8 {[%emt 0:03:27]} 16. Ba2 {[%emt 0:03:14]} Rc5 {[%emt 0:06:55]} 17. Nd3 {[%emt 0:05:27]} Rc8 {[%emt 0:01:59]} 18. Qe2 {[%emt 0:04:30]} Nxd5 {[%emt 0:03:42]} 19. exd5 {[%emt 0:02:24]} Bf5 {[%emt 0:00:50]} 20. Kh1 {[%emt 0:03:05]} Qf6 {[%emt 0:16:42]} 21. Bb1 {[%emt 0:02:24]} Qh6 {[%emt 0:04:15]} 22. Ne1 {[%emt 0:02:09]} Bd7 {[%emt 0:05:02]} 23. Nf3 {[%emt 0:02:29]} Bg4 {[%emt 0:03:22]} 24. Qd3 {[%emt 0:01:23]} Bxf3 {[%emt 0:00:32]} 25. Qxf3 {[%emt 0:00:11]} Rc4 {[%emt 0:02:42]} 26. g3 {[%emt 0:01:14]} Re8 {[%emt 0:04:18]} 27. Re1 {[%emt 0:01:36]} Rf8 {[%emt 0:02:13]} 28. Bd3 {[%emt 0:00:28]} Rc7 {[%emt 0:00:44]} 29. Kg1 {[%emt 0:00:55]} Be7 {[%emt 0:04:07]} 30. Rad1 {[%emt 0:01:42]} Bg5 {[%emt 0:01:36]} 31. Re2 {[%emt 0:03:18]} g6 {[%emt 0:02:28]} 32. Qg2 {[%emt 0:01:52]} Re7 {[%emt 0:03:33]} 33. Rde1 {[%emt 0:01:17]} Rc7 {[%emt 0:00:40]} 34. Rd1 {[%emt 0:01:14]} f5 {[%emt 0:01:01]} 35. f3 {[%emt 0:01:01]} Rcf7 {[%emt 0:01:17]} 36. Rde1 {[%emt 0:00:45]} Kh8 {[%emt 0:00:29]} 37. Bc2 {[%emt 0:01:14]} Kg8 {[%emt 0:00:21]} 38. Bd3 {[%emt 0:00:35]} Kh8 {[%emt 0:00:14]} 39. Bc2 {[%emt 0:01:09]} Rc7 {[%emt 0:00:23]} 40. Bd3 {[%emt 0:00:28]} Rc5 {[%emt 0:00:40]} 41. c4 {[%emt 0:31:13]} Rc7 {[%emt 0:30:56]} 42. b4 {[%emt 0:01:13]} Qg7 {[%emt 0:00:00]} 43. Rc2 {[%emt 0:00:00]} e4 {[%emt 0:00:00]} 44. Bf1 {[%emt 0:00:00]} Qd4+ {[%emt 0:00:00]} 45. Qf2 {[%emt 0:00:00]} e3 {[%emt 0:00:00]} 46. Qe2 {[%emt 0:00:00]} f4 {[%emt 0:00:00]} 47. Rd1 {[%emt 0:00:00]} Qb6 {[%emt 0:00:00]} 48. Rb1 {[%emt 0:00:00]} Rcf7 {[%emt 0:00:00]} 49. Kg2 {[%emt 0:00:00]} a5 {[%emt 0:00:00]} 50. Rcb2 {[%emt 0:00:00]} axb4 {[%emt 0:00:00]} 51. Rxb4 {[%emt 0:00:00]} Qa7 {[%emt 0:00:00]} 52. Qb2+ {[%emt 0:00:00]} Kg8 {[%emt 0:00:05]} 53. Be2 {[%emt 0:00:00]} Rb8 {[%emt 0:01:42]} 54. Qb3 {[%emt 0:00:50]} fxg3 {[%emt 0:03:05]} 55. hxg3 {[%emt 0:00:18]} Bd8 {[%emt 0:00:42]} 56. Rb5 {[%emt 0:03:02]} Kf8 {[%emt 0:01:19]} 57. Qc3 {[%emt 0:01:47]} Kg8 {[%emt 0:00:58]} 58. a5 {[%emt 0:01:18]} b6 {[%emt 0:00:39]} 59. Qxe3 {[%emt 0:00:55]} Re7 {[%emt 0:00:19]} 60. Qd2 {[%emt 0:00:31]} Rbb7 {[%emt 0:00:23]} 61. Ra1 {[%emt 0:00:39]} bxa5 {[%emt 0:00:29]} 62. Bd3 {[%emt 0:00:48]} Rxb5 {[%emt 0:00:27]} 63. cxb5 {[%emt 0:00:05]} Qc5 {[%emt 0:00:03]} 64. Rc1 {[%emt 0:00:35]} Qxd5 {[%emt 0:00:43]} 65. Bc4 {[%emt 0:00:15]} 1-0